fUSD/lending_fUSD_20250205
["ID","MTS","AMOUNT","RATE_DAILY","PERIOD"]
[351747679,1738774259832,-151.08814574,0.00011382,2]
[351747680,1738774259841,-153.0,0.00011409,2]
[351747681,1738774259850,-153.0,0.00011409,2]
[351747682,1738774259861,-510.89,0.00011434,2]
[351747683,1738774259871,-510.86,0.00011434,2]
[351747684,1738774259881,-500.0,0.00011434,2]
[351747685,1738774259891,-664.76,0.00011434,2]
[351747686,1738774259902,-500.0,0.00011434,2]
[351747687,1738774259911,-543.29,0.00011434,2]
[351747688,1738774259921,-221.79,0.00011434,2]
[351747689,1738774259932,-547.44,0.00011434,2]
[351747690,1738774259943,-595.33,0.00011434,2]
[351747691,1738774259953,-451.34,0.00011434,2]
[351747692,1738774259963,-519.9,0.00011434,2]
[351747693,1738774259973,-500.0,0.00011434,2]
[351747694,1738774259986,-500.0,0.00011434,2]
[351747695,1738774259996,-500.0,0.00011434,2]
[351747696,1738774260006,-500.0,0.00011434,2]
[351747697,1738774260016,-500.0,0.00011434,2]
[351747698,1738774260026,-1000.0,0.0001144,2]
[351747699,1738774260036,-1118.728,0.0001146,2]
[351747700,1738774260046,-2233.17,0.000115,2]
[351747701,1738774260057,-510.89,0.00011571,2]
[351747702,1738774260067,-510.86,0.00011571,2]
[351747703,1738774260078,-500.0,0.00011571,2]
[351747704,1738774260088,-664.76,0.00011571,2]
[351747705,1738774260098,-500.0,0.00011571,2]
[351747706,1738774260109,-543.29,0.00011571,2]
[351747707,1738774260119,-595.33,0.00011571,2]
[351747708,1738774260134,-519.9,0.00011571,2]
[351747709,1738774260143,-500.0,0.00011571,2]
[351747710,1738774260156,-500.0,0.00011571,2]
[351747711,1738774260167,-500.0,0.00011571,2]
[351747712,1738774260179,-360.26,0.00011571,2]
[351747713,1738774260189,-500.0,0.00011571,2]
[351747714,1738774260200,-187.09186053,0.00011699,2]
[351747715,1738774260213,-510.89,0.00011708,2]
[351747716,1738774260223,-510.86,0.00011708,2]
[351747717,1738774260237,-500.0,0.00011708,2]
[351747718,1738774260247,-664.76,0.00011708,2]
[351747719,1738774260258,-500.0,0.00011708,2]
[351747720,1738774260270,-543.29,0.00011708,2]
[351747721,1738774260281,-595.33,0.00011708,2]
[351747722,1738774260291,-519.9,0.00011708,2]
[351747723,1738774260301,-497.62,0.00011708,2]
[351747724,1738774260311,-394.05,0.00011708,2]
[351747725,1738774260322,-500.0,0.00011708,2]
[351747726,1738774260333,-500.0,0.00011708,2]
[351747727,1738774260344,-187.09186051,0.00011766,2]
[351747728,1738774260355,-500.0,0.00011798,2]
[351747729,1738774260364,-500.0,0.00011798,2]
[351747730,1738774260375,-167906.28175272,0.00011799,3]
[351747731,1738774260385,-500.0,0.00011799,2]
[351747732,1738774260395,-500.0,0.00011799,2]
[351747733,1738774260405,-630.97448025,0.00011799,2]
[351747734,1738774260415,-187.09186051,0.00011833,2]
[351747735,1738774260425,-510.89,0.00011845,2]
[351747736,1738774260436,-510.86,0.00011845,2]
[351747737,1738774260446,-500.0,0.00011845,2]
[351747738,1738774260458,-664.76,0.00011845,2]
[351747739,1738774260470,-500.0,0.00011845,2]
[351747740,1738774260484,-543.29,0.00011845,2]
[351747741,1738774260494,-595.33,0.00011845,2]
[351747742,1738774260504,-519.9,0.00011845,2]
[351747743,1738774260514,-500.0,0.00011845,2]
[351747744,1738774260526,-499.1,0.00011845,2]
[351747745,1738774260536,-369.65,0.00011847,2]
[351747746,1738774260546,-4000.0,0.0001188,2]
[351747747,1738774260559,-1145.0,0.00011897,2]
[351747748,1738774260569,-772.8290849,0.000119,2]
[351747749,1738774260579,-187.09186051,0.000119,2]
[351747750,1738774260588,-151.08814574,0.000119,2]
[351747751,1738774260598,-6993.63299268,0.000119,2]
[351747752,1738774260609,-1043.88,0.00011921,2]
[351747753,1738774260619,-4843.0,0.00011973,2]
[351747754,1738774260629,-50057.0,0.00011973,2]
[351747755,1738774260640,-510.89,0.00011982,2]
[351747756,1738774260651,-510.86,0.00011982,2]
[351747757,1738774260660,-500.0,0.00011982,2]
[351747758,1738774260671,-664.76,0.00011982,2]
[351747759,1738774260682,-500.0,0.00011982,2]
[351747760,1738774260692,-543.29,0.00011982,2]
[351747761,1738774260702,-595.33,0.00011982,2]
[351747762,1738774260712,-519.9,0.00011982,2]
[351747763,1738774260722,-500.0,0.00011982,2]
[351747764,1738774260735,-500.0,0.00011988,2]
[351747765,1738774260745,-500.0,0.00011989,2]
[351747766,1738774260756,-2000.0,0.00011999,2]
[351747767,1738774260765,-500.0,0.00011999,2]
[351747768,1738774260776,-500.0,0.00011999,2]
[351747769,1738774260786,-500.0,0.00011999,2]
[351747770,1738774260797,-1314740.12711802,0.00011999,2]
[351747771,1738774260808,-237.75331346,0.00012,2]
[351747772,1738774260817,-306.31235098,0.00012,2]
[351747773,1738774260827,-2772800.34664681,0.00012,2]
[351747774,1738774261108,-294.89573016,0.00010475,2]
[351747775,1738774261121,-205.10426984,0.00010475,2]
[351747776,1738774261132,-640.41861391,0.00012,2]
[351747777,1738774261148,-557.46338643,0.00012,2]
[351747778,1738774261160,-1829.04185601,0.00012,2]
[351747779,1738774261172,-1744.27339927,0.00012,2]
[351747780,1738774261186,-3191.29216395,0.00012,2]
[351747781,1738774261440,-500.0,9.928e-05,2]
[351747782,1738774261451,-298.22265891,0.00010064,2]
[351747783,1738774261462,-500.0,0.00010065,2]
[351747784,1738774261473,-260.88,0.00010202,2]
[351747785,1738774261489,-500.0,0.00010612,2]
[351747786,1738774261499,-500.0,0.00010749,2]
[351747787,1738774261510,-354.82,0.00010886,2]
[351747788,1738774261520,-500.0,0.00010886,2]
[351747789,1738774261530,-500.0,0.00011023,2]
[351747790,1738774261542,-500.0,0.0001116,2]
[351747791,1738774261552,-500.0,0.00011297,2]
[351747792,1738774261563,-500.0,0.00011434,2]
[351747793,1738774261574,-14100.07734109,0.00012,2]
[351747794,1738774261587,-4597.32897865,0.00012,2]
[351747795,1738774261600,-490.535,0.00012,2]
[351747796,1738774261612,-6825877.65453629,0.00012,2]
[351747797,1738774261625,-702682.63120125,0.00012,2]
[351747798,1738774261645,-6579.62801796,0.00012,2]
[351747799,1738774261658,-110035.6047543,0.00012,2]
[351747800,1738774261679,-500.0,0.00011571,2]
[351747801,1738774261690,-1199.68651401,0.00012,2]
[351747802,1738774261703,-305.91068178,0.00012,2]
[351747803,1738774261716,-258.14049111,0.00012,2]
[351747804,1738774262161,-424.09975964,0.00012,2]
[351747805,1738774262407,-500.0,9.927e-05,2]
[351747806,1738774262417,-501.6223176,0.00010064,2]
[351747807,1738774262428,-500.0,0.00011708,2]
[351747808,1738774262440,-592.26598365,0.00011845,2]
[351747809,1738774262450,-2597.98380243,0.00012,2]
[351747810,1738774262462,-1838.35740643,0.00012,2]
[351747811,1738774262474,-1573.0,0.00012,2]
[351747812,1738774262492,-6332.2849218,0.00012,2]
[351747813,1738774262505,-152684.17779396,0.00012,2]
[351747814,1738774262522,-1798.44259758,0.00012,2]
[351747815,1738774262534,-26278.754005,0.00012,2]
[351747816,1738774262695,-500.0,9.927e-05,2]
[351747817,1738774262706,-501.04317028,0.00010064,2]
[351747818,1738774262716,-6108.72967057,0.00012,2]
[351747819,1738774263229,-973.86479657,0.00012,2]
[351747820,1738774263286,-55.20072707,0.00012,2]
[351747821,1738774263299,-4255.68501492,0.00012,2]
[351747822,1738774263312,-30214.23951208,0.00012,2]
[351747823,1738774263324,-10277.47767493,0.00012,2]
[351747824,1738774263336,-906.254892,0.00012,2]
[351747825,1738774263358,-3394.12913609,0.00012,2]
[351747826,1738774263369,-253.17469172,0.00012,2]
[351747827,1738774322945,1987.0,0.0002,120]
[351747829,1738774331725,1398.0,0.0001712,90]
[351747844,1738775431837,-310.05,8.219e-05,2]
[351747845,1738775432101,-465.88366983,8.219e-05,2]
[351747846,1738775437678,-451.60633017,8.219e-05,2]
[351747847,1738775437688,-157.143517,8.799e-05,2]
[351747848,1738775437697,-181.518427,8.799e-05,2]
[351747849,1738775437707,-195.966593,8.799e-05,2]
[351747850,1738775437717,-165.210226,8.799e-05,2]
[351747851,1738775437726,-2500.0,8.851e-05,2]
[351747852,1738775437737,-10883.1151,8.973e-05,2]
[351747853,1738775437747,-1400.55,9.799e-05,2]
[351747854,1738775437757,-2052.8422068,9.813e-05,2]
[351747855,1738775437784,-4115.15155009,9.813e-05,2]
[351747856,1738775437796,-8443.32624311,9.813e-05,2]
[351747857,1738775437806,-500.0,9.927e-05,2]
[351747858,1738775437816,-500.0,9.927e-05,2]
[351747859,1738775437825,-317.94918229,9.927e-05,2]
[351747860,1738775437835,-500.0,9.927e-05,2]
[351747861,1738775437844,-215.46,9.927e-05,2]
[351747862,1738775437854,-500.0,9.927e-05,2]
[351747863,1738775437864,-500.0,9.927e-05,2]
[351747864,1738775437873,-244.03,9.927e-05,2]
[351747865,1738775437883,-500.0,9.927e-05,2]
[351747866,1738775437892,-277.2,9.927e-05,2]
[351747867,1738775437902,-179.53,9.927e-05,2]
[351747868,1738775437912,-541.43933076,9.964e-05,2]
[351747869,1738775437921,-8102.67,9.967e-05,2]
[351747870,1738775437932,-216.54,9.967e-05,2]
[351747871,1738775437942,-245.03,0.00010059,2]
[351747872,1738775437951,-500.0,0.00010064,2]
[351747873,1738775437961,-500.0,0.00010064,2]
[351747874,1738775437971,-202.02378117,0.00010064,2]
[351747875,1738775437980,-500.0,0.00010064,2]
[351747876,1738775437993,-190.37123564,0.00010064,2]
[351747877,1738775438003,-500.0,0.00010064,2]
[351747878,1738775438013,-500.0,0.00010064,2]
[351747879,1738775438023,-500.0,0.00010064,2]
[351747880,1738775438033,-500.0,0.00010064,2]
[351747881,1738775438043,-220.79977597,0.00010064,2]
[351747882,1738775438053,-500.0,0.00010064,2]
[351747883,1738775438063,-502.23520174,0.00010064,2]
[351747884,1738775438073,-500.0,0.00010064,2]
[351747885,1738775438083,-500.0,0.00010064,2]
[351747886,1738775438093,-500.0,0.00010064,2]
[351747887,1738775438103,-638.72155357,0.00010064,2]
[351747888,1738775438112,-154.25447722,0.00010064,2]
[351747889,1738775438122,-336.9628116,0.00010064,2]
[351747890,1738775438131,-500.0,0.00010064,2]
[351747891,1738775438141,-500.0,0.00010064,2]
[351747892,1738775438151,-500.0,0.00010064,2]
[351747894,1738775438161,-505.0046534,0.00010064,2]
[351747896,1738775438171,-500.0,0.00010064,2]
[351747898,1738775438180,-500.0,0.00010064,2]
[351747901,1738775438190,-500.0,0.00010064,2]
[351747903,1738775438199,-500.0,0.00010064,2]
[351747905,1738775438208,-500.0,0.00010064,2]
[351747907,1738775438222,-502.59769097,0.00010064,2]
[351747909,1738775438231,-500.0,0.00010064,2]
[351747911,1738775438243,-279.84463679,0.00010064,2]
[351747913,1738775438253,-500.0,0.00010064,2]
[351747915,1738775438263,-500.0,0.00010064,2]
[351747917,1738775438273,-500.0,0.00010064,2]
[351747919,1738775438284,-500.0,0.00010064,2]
[351747921,1738775438294,-500.0,0.00010064,2]
[351747923,1738775438304,-500.0,0.00010064,2]
[351747925,1738775438314,-500.0,0.00010064,2]
[351747927,1738775438323,-500.0,0.00010064,2]
[351747929,1738775438333,-500.0,0.00010064,2]
[351747931,1738775438342,-500.0,0.00010064,2]
[351747933,1738775438352,-500.0,0.00010064,2]
[351747935,1738775438362,-500.0,0.00010064,2]
[351747937,1738775438371,-308.84598209,0.00010064,2]
[351747939,1738775438386,-436.22401791,0.00010064,2]
[351747941,1738775438395,-371.48,0.00010065,2]
[351747943,1738775438405,-28600.61,0.00010065,2]
[351747945,1738775438414,-299.99,0.00010065,2]
[351747947,1738775438424,-1962.04,0.00010096,2]
[351747950,1738775438434,-250.0,0.00010096,2]
[351747951,1738775438444,-150.99,0.00010096,2]
[351747953,1738775438454,-159.17,0.00010137,2]
[351747955,1738775438464,-848.35,0.00010137,2]
[351747958,1738775438474,-1500.0,0.00010146,2]
[351747960,1738775438484,-304.90898746,0.00010164,2]
[351747962,1738775438495,-233.8159224,0.00010164,2]
[351747963,1738775438505,-500.0,0.00010201,2]
[351747965,1738775438514,-23900.0,0.00010233,2]
[351747967,1738775438530,-1000.0,0.00010326,2]
[351747969,1738775438539,-172.45,0.00010371,2]
[351747971,1738775438549,-1227.54,0.00010478,2]
[351747974,1738775438559,-875.333,0.00010497,2]
[351747975,1738775438569,-152.0,0.000108,3]
[351747977,1738775438578,-152.0,0.000111,4]
[351747979,1738775438587,-216.54,0.00011213,2]
[351747981,1738775438598,-152.0,0.000114,5]
[351747983,1738775438607,-894.982,0.00011585,2]
[351747985,1738775438617,-1000.0,0.00011617,2]
[351747987,1738775438627,-152.0,0.000117,6]
[351747989,1738775438636,-2009.86,0.000118,2]
[351747991,1738775438646,-500.0,0.00011898,2]
[351747993,1738775438655,-500.0,0.00011898,2]
[351747995,1738775438665,-500.0,0.00011898,2]
[351747997,1738775438675,-500.0,0.00011898,2]
[351747999,1738775438684,-543.86978298,0.00011898,2]
[351748001,1738775438693,-500.0,0.00011898,2]
[351748003,1738775438703,-500.0,0.00011898,2]
[351748005,1738775438712,-500.0,0.00011898,2]
[351748007,1738775438721,-500.0,0.00011898,2]
[351748009,1738775438731,-500.0,0.00011898,2]
[351748011,1738775438741,-500.0,0.00011898,2]
[351748013,1738775438751,-500.0,0.00011898,2]
[351748015,1738775438761,-500.0,0.00011898,2]
[351748017,1738775438772,-500.0,0.00011898,2]
[351748019,1738775438782,-500.0,0.00011898,2]
[351748021,1738775438792,-500.0,0.00011898,2]
[351748023,1738775438803,-500.0,0.00011898,2]
[351748025,1738775438813,-500.0,0.00011898,2]
[351748028,1738775438824,-604.02,0.00011898,2]
[351748030,1738775438834,-222.82889275,0.00011898,2]
[351748032,1738775438844,-500.0,0.00011899,2]
[351748034,1738775438853,-500.0,0.00011899,2]
[351748036,1738775438863,-500.0,0.00011899,2]
[351748037,1738775438873,-500.0,0.00011899,2]
[351748040,1738775438883,-500.0,0.00011899,2]
[351748042,1738775438892,-500.0,0.00011899,2]
[351748044,1738775438902,-500.0,0.00011899,2]
[351748046,1738775438911,-500.0,0.00011899,2]
[351748048,1738775438921,-500.0,0.00011899,2]
[351748050,1738775438930,-500.0,0.00011899,2]
[351748052,1738775438940,-500.0,0.00011899,2]
[351748054,1738775438949,-500.0,0.00011899,2]
[351748056,1738775438959,-500.0,0.00011899,2]
[351748058,1738775438969,-530.15,0.00011899,2]
[351748060,1738775438979,-500.0,0.00011899,2]
[351748062,1738775438989,-500.0,0.00011899,2]
[351748064,1738775438999,-500.0,0.00011899,2]
[351748066,1738775439009,-500.0,0.00011899,2]
[351748068,1738775439018,-500.0,0.00011899,2]
[351748070,1738775439027,-569.04,0.00011899,2]
[351748071,1738775439037,-500.0,0.00011899,2]
[351748073,1738775439046,-500.0,0.00011899,2]
[351748075,1738775439056,-500.0,0.00011899,2]
[351748077,1738775439066,-500.0,0.00011899,2]
[351748080,1738775439077,-500.0,0.00011899,2]
[351748081,1738775439086,-609.45,0.00011899,2]
[351748083,1738775439095,-500.0,0.00011899,2]
[351748085,1738775439104,-500.0,0.00011899,2]
[351748087,1738775439114,-500.0,0.00011899,2]
[351748089,1738775439123,-500.0,0.00011899,2]
[351748091,1738775439132,-500.0,0.00011899,2]
[351748093,1738775439142,-500.0,0.00011899,2]
[351748095,1738775439151,-500.0,0.00011899,2]
[351748097,1738775439161,-500.0,0.00011899,2]
[351748099,1738775439171,-500.0,0.00011899,2]
[351748101,1738775439184,-481.23809252,0.00011899,2]
[351748103,1738775439197,-500.0,0.00011899,2]
[351748105,1738775439206,-500.0,0.00011899,2]
[351748107,1738775439216,-500.0,0.00011899,2]
[351748109,1738775439225,-500.0,0.00011899,2]
[351748111,1738775439235,-535.43,0.00011899,2]
[351748113,1738775439244,-500.0,0.00011899,2]
[351748115,1738775439253,-500.0,0.00011899,2]
[351748117,1738775439263,-500.0,0.00011899,2]
[351748119,1738775439272,-500.0,0.00011899,2]
[351748121,1738775439281,-500.0,0.00011899,2]
[351748123,1738775439290,-500.0,0.00011899,2]
[351748124,1738775439299,-505.26722651,0.00011899,2]
[351748127,1738775439309,-500.0,0.00011899,2]
[351748129,1738775439319,-500.0,0.00011899,2]
[351748131,1738775439329,-512.18,0.00011899,2]
[351748133,1738775439338,-500.0,0.00011899,2]
[351748135,1738775439348,-500.0,0.00011899,2]
[351748137,1738775439357,-500.0,0.00011899,2]
[351748139,1738775439368,-567.06,0.00011899,2]
[351748141,1738775439377,-500.0,0.00011899,2]
[351748143,1738775439387,-518.88,0.00011899,2]
[351748145,1738775439398,-500.0,0.00011899,2]
[351748147,1738775439408,-504.93445649,0.00011899,2]
[351748149,1738775439418,-500.0,0.00011899,2]
[351748151,1738775439426,-462.75108933,0.00011899,2]
[351748153,1738775439436,-500.0,0.00011899,2]
[351748155,1738775439446,-500.0,0.00011899,2]
[351748157,1738775439456,-420.09016981,0.00011899,2]
[351748159,1738775439466,-500.0,0.00011899,2]
[351748161,1738775439475,-500.0,0.00011899,2]
[351748163,1738775439485,-500.0,0.00011899,2]
[351748165,1738775439494,-500.0,0.00011899,2]
[351748168,1738775439504,-243.7174541,0.00011899,2]
[351748170,1738775439514,-500.0,0.00011899,2]
[351748172,1738775439529,-500.0,0.00011899,2]
[351748174,1738775439538,-500.0,0.00011899,2]
[351748176,1738775439547,-500.0,0.00011899,2]
[351748178,1738775439557,-500.0,0.00011899,2]
[351748179,1738775439568,-500.0,0.00011899,2]
[351748181,1738775439578,-500.0,0.00011899,2]
[351748184,1738775439588,-500.0,0.00011899,2]
[351748185,1738775439597,-500.0,0.00011899,2]
[351748187,1738775439606,-500.0,0.00011899,2]
[351748189,1738775439615,-500.0,0.00011899,2]
[351748191,1738775439625,-500.0,0.00011899,2]
[351748193,1738775439634,-500.0,0.00011899,2]
[351748195,1738775439643,-563.61,0.00011899,2]
[351748197,1738775439653,-500.0,0.00011899,2]
[351748199,1738775439663,-500.0,0.00011899,2]
[351748201,1738775439673,-500.0,0.00011899,2]
[351748203,1738775439683,-500.0,0.00011899,2]
[351748205,1738775439693,-500.0,0.00011899,2]
[351748208,1738775439702,-500.0,0.00011899,2]
[351748211,1738775439712,-500.0,0.00011899,2]
[351748214,1738775439722,-500.0,0.00011899,2]
[351748217,1738775439731,-500.0,0.00011899,2]
[351748220,1738775439743,-649.89,0.00011899,2]
[351748223,1738775439754,-500.0,0.00011899,2]
[351748225,1738775439764,-180.1522927,0.00011899,2]
[351748228,1738775439774,-500.0,0.00011899,2]
[351748231,1738775439785,-500.0,0.00011899,2]
[351748234,1738775439795,-500.0,0.00011899,2]
[351748237,1738775439804,-500.0,0.00011899,2]
[351748240,1738775439813,-500.0,0.00011899,2]
[351748243,1738775439822,-500.0,0.00011899,2]
[351748246,1738775439831,-500.0,0.00011899,2]
[351748249,1738775439841,-500.0,0.00011899,2]
[351748252,1738775439850,-500.0,0.00011899,2]
[351748255,1738775439859,-500.0,0.00011899,2]
[351748257,1738775439867,-500.0,0.00011899,2]
[351748260,1738775439876,-500.0,0.00011899,2]
[351748263,1738775439887,-500.0,0.00011899,2]
[351748264,1738775439896,-500.0,0.00011899,2]
[351748267,1738775439906,-500.0,0.00011899,2]
[351748269,1738775439916,-500.0,0.00011899,2]
[351748271,1738775439926,-501.32859064,0.00011899,2]
[351748273,1738775439936,-500.0,0.00011899,2]
[351748275,1738775439945,-500.0,0.00011899,2]
[351748277,1738775439955,-501.64208347,0.00011899,2]
[351748279,1738775439964,-273.36863349,0.00011899,2]
[351748281,1738775439973,-500.0,0.00011899,2]
[351748283,1738775439983,-500.0,0.00011899,2]
[351748285,1738775439995,-500.0,0.00011899,2]
[351748287,1738775440005,-500.0,0.00011899,2]
[351748289,1738775440016,-500.0,0.00011899,2]
[351748291,1738775440025,-500.36079259,0.00011899,2]
[351748293,1738775440035,-500.0,0.00011899,2]
[351748294,1738775440044,-500.0,0.00011899,2]
[351748297,1738775440054,-500.0,0.00011899,2]
[351748298,1738775440064,-500.0,0.00011899,2]
[351748300,1738775440074,-500.0,0.00011899,2]
[351748302,1738775440083,-500.0,0.00011899,2]
[351748304,1738775440093,-500.0,0.00011899,2]
[351748306,1738775440103,-501.46697405,0.00011899,2]
[351748308,1738775440112,-500.0,0.00011899,2]
[351748310,1738775440122,-500.0,0.00011899,2]
[351748312,1738775440131,-590.08,0.00011899,2]
[351748314,1738775440140,-500.0,0.00011899,2]
[351748316,1738775440150,-507.74918371,0.00011899,2]
[351748318,1738775440158,-500.0,0.00011899,2]
[351748320,1738775440168,-522.89,0.00011899,2]
[351748322,1738775440178,-500.0,0.00011899,2]
[351748324,1738775440187,-409.61649709,0.00011899,2]
[351748326,1738775440197,-513.92334594,0.00011899,2]
[351748328,1738775440206,-500.0,0.00011899,2]
[351748330,1738775440215,-500.0,0.00011899,2]
[351748332,1738775440225,-500.0,0.00011899,2]
[351748334,1738775440235,-500.0,0.00011899,2]
[351748336,1738775440244,-500.0,0.00011899,2]
[351748338,1738775440255,-500.0,0.00011899,2]
[351748340,1738775440264,-500.0,0.00011899,2]
[351748342,1738775440274,-500.90416506,0.00011899,2]
[351748344,1738775440285,-500.0,0.00011899,2]
[351748346,1738775440294,-500.0,0.00011899,2]
[351748348,1738775440304,-305.28584941,0.00011899,2]
[351748350,1738775440314,-500.0,0.00011899,2]
[351748352,1738775440323,-500.0,0.00011899,2]
[351748354,1738775440332,-500.0,0.00011899,2]
[351748357,1738775440342,-500.0,0.00011899,2]
[351748359,1738775440351,-500.0,0.00011899,2]
[351748361,1738775440361,-500.0,0.00011899,2]
[351748363,1738775440371,-387.09635591,0.00011899,2]
[351748365,1738775440381,-500.0,0.00011899,2]
[351748367,1738775440391,-500.0,0.00011899,2]
[351748369,1738775440401,-500.0,0.00011899,2]
[351748371,1738775440411,-500.0,0.00011899,2]
[351748373,1738775440421,-500.0,0.00011899,2]
[351748375,1738775440431,-500.0,0.00011899,2]
[351748377,1738775440441,-500.0,0.00011899,2]
[351748379,1738775440450,-500.0,0.00011899,2]
[351748380,1738775440459,-500.0,0.00011899,2]
[351748382,1738775440469,-500.0,0.00011899,2]
[351748385,1738775440480,-500.0,0.00011899,2]
[351748387,1738775440490,-500.0,0.00011899,2]
[351748389,1738775440500,-500.0,0.00011899,2]
[351748390,1738775440511,-500.0,0.00011899,2]
[351748392,1738775440526,-500.0,0.00011899,2]
[351748394,1738775440543,-500.0,0.00011899,2]
[351748396,1738775440554,-500.0,0.00011899,2]
[351748398,1738775440566,-500.0,0.00011899,2]
[351748400,1738775440578,-500.0,0.00011899,2]
[351748402,1738775440589,-500.0,0.00011899,2]
[351748404,1738775440599,-500.0,0.00011899,2]
[351748406,1738775440608,-500.0,0.00011899,2]
[351748408,1738775440618,-500.0,0.00011899,2]
[351748410,1738775440630,-500.0,0.00011899,2]
[351748412,1738775440641,-500.0,0.00011899,2]
[351748414,1738775440651,-500.0,0.00011899,2]
[351748416,1738775440662,-500.0,0.00011899,2]
[351748418,1738775440672,-500.0,0.00011899,2]
[351748420,1738775440682,-500.0,0.00011899,2]
[351748422,1738775440691,-500.0,0.00011899,2]
[351748424,1738775440701,-229.42645421,0.00011899,2]
[351748433,1738775440782,-111.67609169,0.00011899,2]
[351748435,1738775440791,-500.0,0.00011899,2]
[351748437,1738775440801,-500.0,0.00011899,2]
[351748439,1738775440811,-421.62343621,0.00011899,2]
[351748441,1738775440822,-78.37656379,0.00011899,2]
[351748443,1738775440831,-500.0,0.00011899,2]
[351748445,1738775440841,-17.63728951,0.00011899,2]
[351748448,1738775440853,-482.36271049,0.00011899,2]
[351748450,1738775440862,-500.0,0.00011899,2]
[351748452,1738775440872,-500.0,0.00011899,2]
[351748454,1738775440882,-500.0,0.00011899,2]
[351748456,1738775440894,-500.0,0.00011899,2]
[351748458,1738775440905,-500.0,0.00011899,2]
[351748460,1738775440917,-500.0,0.00011899,2]
[351748462,1738775440927,-500.0,0.00011899,2]
[351748464,1738775440937,-500.0,0.00011899,2]
[351748466,1738775440946,-307.00924844,0.00011899,2]
[351748468,1738775440956,-94330.62812214,0.000119,2]
[351748470,1738775440967,-435.38038272,0.000119,2]
[351748472,1738775440978,-6315.3454475,0.000119,2]
[351748475,1738775440990,-697.956884,0.000119,2]
[351748477,1738775441001,-1471.48640674,0.000119,2]
[351748478,1738775441012,-721.49244914,0.000119,2]
[351748479,1738775441024,-811.54007734,0.000119,2]
[351748651,1738775442799,-392.13322357,8.699e-05,2]
[351748945,1738775445835,-313.664995,8.699e-05,2]
[351748947,1738775445847,-860.23508143,8.699e-05,2]
[351748949,1738775445857,-679.7125,8.851e-05,2]
[351748951,1738775445867,-321.1,0.00011898,2]
[351748953,1738775445877,-500.0,0.00011899,2]
[351748955,1738775445887,-2592.32707509,0.000119,2]
[351748961,1738775445939,-1309.7699952,0.000119,2]
[351748963,1738775445951,-181096.58082918,0.000119,2]
[351748966,1738775445961,-5000.0,0.000119,2]
[351748968,1738775445971,-2292.07855302,0.000119,2]
[351748970,1738775445981,-401.8321818,0.00011964,2]
[351748972,1738775445993,-2645.0,0.00011987,6]
[351748974,1738775446003,-2631.0,0.00011999,7]
[351748976,1738775446012,-2000.0,0.00011999,2]
[351748978,1738775446022,-500.0,0.00011999,2]
[351748980,1738775446031,-928.0,0.00011999,2]
[351748982,1738775446040,-237.75331346,0.00012,2]
[351748984,1738775446050,-306.31235098,0.00012,2]
[351748986,1738775446059,-33774.18347588,0.00012,2]